[Event "DMP Ekstraliga 2020"]
[Site "Krakow"]
[Date "2020.09.02"]
[Round "8.22"]
[White "Grabarczyk, Miroslaw"]
[Black "Nguyen, Piotr"]
[Result "1/2-1/2"]
[ECO "A40"]
[WhiteElo "2368"]
[BlackElo "2422"]
[Annotator "ChessBase"]
[PlyCount "182"]
[EventDate "2020.08.26"]
[EventType "team-tourn"]
[EventCountry "POL"]
[SourceTitle "playchess.com"]
[Source "ChessBase"]
[SourceQuality "1"]
[WhiteTeam "Hetman Plock"]
[BlackTeam "Dwie Wieze Krakow"]
[TimeControl "30/5400+30:1800+30"]

1. d4 {[%emt 0:00:00]} g6 {[%emt 0:00:00]} 2. Nf3 {[%emt 0:00:36]} Bg7 {[%emt 0:00:00]} 3. g3 {[%emt 0:01:11]} c5 {[%emt 0:00:50]} 4. dxc5 {[%emt 0:07:59]} Qa5+ {[%emt 0:01:58]} 5. Nbd2 {[%emt 0:00:46]} Qxc5 {[%emt 0:00:20]} 6. Bg2 {[%emt 0:00:11]} Nf6 {[%emt 0:00:31]} 7. O-O {[%emt 0:02:15]} d6 {[%emt 0:05:10]} 8. e4 {[%emt 0:04:44]} O-O {[%emt 0:06:32]} 9. c3 {[%emt 0:03:45]} Nbd7 {[%emt 0:08:38]} 10. Qe2 {[%emt 0:05:43]} Rb8 {[%emt 0:05:58]} 11. Nb3 {[%emt 0:06:31]} Qc7 {[%emt 0:00:27]} 12. Re1 {[%emt 0:06:50]} e5 {[%emt 0:10:04]} 13. Bg5 {[%emt 0:09:22]} b5 {[%emt 0:08:38]} 14. Nfd2 {[%emt 0:04:21]} h6 {[%emt 0:09:35]} 15. Be3 {[%emt 0:03:40]} a6 {[%emt 0:08:46]} 16. a4 {[%emt 0:02:29]} Nb6 {[%emt 0:03:45]} 17. axb5 {[%emt 0:05:17]} axb5 {[%emt 0:00:05]} 18. Qxb5 {[%emt 0:03:56]} Be6 {[%emt 0:02:26]} 19. Qa6 {[%emt 0:14:50]} Nc4 {[%emt 0:03:45]} 20. Nxc4 {[%emt 0:01:08]} Bxc4 {[%emt 0:00:57]} 21. Qa5 {[%emt 0:00:07]} Rfc8 {[%emt 0:06:27]} 22. Qxc7 {[%emt 0:04:07]} Rxc7 {[%emt 0:00:02]} 23. Nd2 {[%emt 0:00:14]} Be6 {[%emt 0:06:38]} 24. h3 {[%emt 0:06:35]} Rxb2 {[%emt 0:00:27]} 25. c4 {[%emt 0:00:19]} Nd7 {[%emt 0:01:23]} 26. Reb1 {[%emt 0:00:29]} Rxb1+ {[%emt 0:02:22]} 27. Rxb1 {[%emt 0:00:03]} f5 {[%emt 0:00:32]} 28. Rb4 {[%emt 0:01:42]} Kf7 {[%emt 0:00:35]} 29. Ra4 {[%emt 0:01:04]} Bf8 {[%emt 0:02:22]} 30. h4 {[%emt 0:00:27]} Nc5 {[%emt 0:01:18]} 31. Bxc5 {[%emt 0:30:34]} Rxc5 {[%emt 0:30:06]} 32. Ra7+ {[%emt 0:00:25]} Kf6 {[%emt 0:01:56]} 33. h5 {[%emt 0:00:46]} f4 {[%emt 0:02:54]} 34. hxg6 {[%emt 0:00:57]} Kxg6 {[%emt 0:00:10]} 35. Bf1 {[%emt 0:00:50]} Rc8 {[%emt 0:00:36]} 36. Ra6 {[%emt 0:00:30]} Kf7 {[%emt 0:00:13]} 37. Be2 {[%emt 0:00:26]} Be7 {[%emt 0:00:31]} 38. Kg2 {[%emt 0:00:36]} Rb8 {[%emt 0:00:54]} 39. c5 {[%emt 0:01:16]} Rb2 {[%emt 0:00:54]} 40. cxd6 {[%emt 0:00:00]} Bd8 {[%emt 0:00:00]} 41. Bh5+ {[%emt 0:00:00]} Kf6 {[%emt 0:00:00]} 42. d7 {[%emt 0:00:00]} Ke7 {[%emt 0:00:00]} 43. Nf3 {[%emt 0:00:00]} Bb6 {[%emt 0:00:00]} 44. Rxb6 {[%emt 0:00:00]} Rxb6 {[%emt 0:00:00]} 45. Nxe5 {[%emt 0:00:00]} fxg3 {[%emt 0:00:00]} 46. Kxg3 {[%emt 0:00:00]} Bxd7 {[%emt 0:00:00]} 47. Nxd7 {[%emt 0:00:00]} Kxd7 {[%emt 0:00:00]} 48. f4 {[%emt 0:00:00]} Ke6 {[%emt 0:00:00]} 49. Bg4+ {[%emt 0:00:00]} Kf6 {[%emt 0:00:00]} 50. e5+ {[%emt 0:00:00]} Kg6 {[%emt 0:00:00]} 51. Bd7 {[%emt 0:00:00]} Rb7 {[%emt 0:00:00]} 52. Ba4 {[%emt 0:00:00]} Rc7 {[%emt 0:00:00]} 53. Kg4 {[%emt 0:00:00]} h5+ {[%emt 0:00:00]} 54. Kh4 {[%emt 0:01:46]} Kf5 {[%emt 0:02:48]} 55. Bb5 {[%emt 0:01:16]} Rc1 {[%emt 0:00:30]} 56. Bd7+ {[%emt 0:01:17]} Kxf4 {[%emt 0:00:04]} 57. Kxh5 {[%emt 0:00:06]} Kxe5 {[%emt 0:00:26]} 58. Kg6 {[%emt 0:00:26]} Rg1+ {[%emt 0:01:09]} 59. Kf7 {[%emt 0:01:49]} Rf1+ {[%emt 0:00:48]} 60. Kg7 {[%emt 0:00:16]} Ra1 {[%emt 0:01:11]} 61. Bb5 {[%emt 0:00:27]} Ra7+ {[%emt 0:00:23]} 62. Kg6 {[%emt 0:00:28]} Rb7 {[%emt 0:00:40]} 63. Bc4 {[%emt 0:00:23]} Rb4 {[%emt 0:00:04]} 64. Be2 {[%emt 0:00:18]} Rb6+ {[%emt 0:00:13]} 65. Kg7 {[%emt 0:00:25]} Rf6 {[%emt 0:01:09]} 66. Bd3 {[%emt 0:00:40]} Ke6 {[%emt 0:00:07]} 67. Bc4+ {[%emt 0:00:14]} Ke7 {[%emt 0:00:04]} 68. Bb3 {[%emt 0:01:26]} Rf3 {[%emt 0:00:32]} 69. Bc4 {[%emt 0:00:40]} Rg3+ {[%emt 0:00:17]} 70. Kh7 {[%emt 0:00:22]} Kf6 {[%emt 0:00:40]} 71. Bd5 {[%emt 0:00:32]} Rg7+ {[%emt 0:00:21]} 72. Kh8 {[%emt 0:00:07]} Kg6 {[%emt 0:01:05]} 73. Be4+ {[%emt 0:00:24]} Kf7 {[%emt 0:00:34]} 74. Bd5+ {[%emt 0:00:36]} Kf8 {[%emt 0:00:05]} 75. Be4 {[%emt 0:01:02]} Re7 {[%emt 0:00:58]} 76. Bc2 {[%emt 0:00:28]} Re2 {[%emt 0:00:13]} 77. Bg6 {[%emt 0:01:01]} Rg2 {[%emt 0:00:28]} 78. Be4 {[%emt 0:00:30]} Rg4 {[%emt 0:01:01]} 79. Bc2 {[%emt 0:00:25]} Rg3 {[%emt 0:02:27]} 80. Kh7 {[%emt 0:00:28]} Kf7 {[%emt 0:00:10]} 81. Kh6 {[%emt 0:00:41]} Kf6 {[%emt 0:00:05]} 82. Kh7 {[%emt 0:00:40]} Rg7+ {[%emt 0:00:11]} 83. Kh8 {[%emt 0:00:10]} Rc7 {[%emt 0:00:26]} 84. Bd3 {[%emt 0:00:55]} Kf7 {[%emt 0:00:16]} 85. Kh7 {[%emt 0:00:56]} Kf6+ {[%emt 0:01:30]} 86. Kg8 {[%emt 0:00:34]} Rg7+ {[%emt 0:00:06]} 87. Kh8 {[%emt 0:00:07]} Kf7 {[%emt 0:00:04]} 88. Bc4+ {[%emt 0:00:07]} Kf8 {[%emt 0:00:03]} 89. Bd3 {[%emt 0:00:16]} Rg3 {[%emt 0:00:04]} 90. Be4 {[%emt 0:00:09]} Rh3+ {[%emt 0:00:04]} 91. Bh7 {[%emt 0:00:03]} Kf7 {[%emt 0:00:05]} 1/2-1/2

[Event "DMP Ekstraliga 2020"]
[Site "Krakow"]
[Date "2020.09.02"]
[Round "8.24"]
[White "Bulmaga, Irina"]
[Black "Leks, Maria"]
[Result "1-0"]
[ECO "C58"]
[WhiteElo "2434"]
[BlackElo "2080"]
[Annotator "ChessBase"]
[PlyCount "109"]
[EventDate "2020.08.26"]
[EventType "team-tourn"]
[EventCountry "POL"]
[SourceTitle "playchess.com"]
[Source "ChessBase"]
[SourceQuality "1"]
[WhiteTeam "Hetman Plock"]
[BlackTeam "Dwie Wieze Krakow"]
[TimeControl "30/5400+30:1800+30"]

1. e4 {[%emt 0:00:00]} e5 {[%emt 0:00:00]} 2. Nf3 {[%emt 0:00:00]} Nc6 {[%emt 0:00:00]} 3. Bc4 {[%emt 0:00:00]} Nf6 {[%emt 0:00:00]} 4. Ng5 {[%emt 0:00:12]} d5 {[%emt 0:00:03]} 5. exd5 {[%emt 0:00:07]} Na5 {[%emt 0:00:04]} 6. Bb5+ {[%emt 0:00:07]} c6 {[%emt 0:00:08]} 7. dxc6 {[%emt 0:00:07]} bxc6 {[%emt 0:00:04]} 8. Bd3 {[%emt 0:00:11]} Be7 {[%emt 0:14:58]} 9. O-O {[%emt 0:05:03]} h6 {[%emt 0:01:25]} 10. Ne4 {[%emt 0:00:45]} Nd5 {[%emt 0:01:14]} 11. Ng3 {[%emt 0:00:19]} O-O {[%emt 0:02:36]} 12. Re1 {[%emt 0:01:43]} f5 {[%emt 0:15:22]} 13. Be2 {[%emt 0:20:26]} Bc5 {[%emt 0:13:22]} 14. c3 {[%emt 0:09:19]} Qh4 {[%emt 0:13:02]} 15. d4 {[%emt 0:18:14]} Bb6 {[%emt 0:24:17]} 16. c4 {[%emt 0:03:50]} Bxd4 {[%emt 0:00:03]} 17. cxd5 {[%emt 0:00:36]} f4 {[%emt 0:04:53]} 18. Nh1 {[%emt 0:00:23]} cxd5 {[%emt 0:00:03]} 19. Bf3 {[%emt 0:03:06]} Be6 {[%emt 0:01:26]} 20. Nc3 {[%emt 0:01:32]} Rad8 {[%emt 0:02:05]} 21. Nb5 {[%emt 0:01:57]} Nc6 {[%emt 0:00:59]} 22. Nxd4 {[%emt 0:00:33]} Nxd4 {[%emt 0:00:17]} 23. Rxe5 {[%emt 0:00:55]} Nxf3+ {[%emt 0:00:15]} 24. Qxf3 {[%emt 0:00:47]} Bg4 {[%emt 0:00:03]} 25. Qd3 {[%emt 0:01:36]} f3 {[%emt 0:02:00]} 26. Ng3 {[%emt 0:01:04]} Qf6 {[%emt 0:01:57]} 27. Qd4 {[%emt 0:06:04]} fxg2 {[%emt 0:01:22]} 28. Be3 {[%emt 0:00:30]} Bf3 {[%emt 0:00:07]} 29. Rf5 {[%emt 0:04:29]} Qg6 {[%emt 0:00:32]} 30. Rxf3 {[%emt 0:02:22]} Rxf3 {[%emt 0:00:06]} 31. Kxg2 {[%emt 0:30:05]} Rf7 {[%emt 0:30:35]} 32. Rd1 {[%emt 0:01:08]} Rfd7 {[%emt 0:00:48]} 33. b4 {[%emt 0:01:46]} Qa6 {[%emt 0:00:19]} 34. Rd2 {[%emt 0:00:35]} Qc4 {[%emt 0:01:08]} 35. Nh5 {[%emt 0:04:55]} Qc6 {[%emt 0:00:33]} 36. Ng3 {[%emt 0:00:53]} Qa6 {[%emt 0:01:04]} 37. h3 {[%emt 0:01:01]} Qe6 {[%emt 0:00:42]} 38. a4 {[%emt 0:00:16]} Rc8 {[%emt 0:00:18]} 39. Qg4 {[%emt 0:01:51]} Qxg4 {[%emt 0:00:30]} 40. hxg4 {[%emt 0:00:00]} Rc4 {[%emt 0:00:00]} 41. Rd4 {[%emt 0:00:00]} Kf7 {[%emt 0:00:00]} 42. b5 {[%emt 0:00:00]} Ke6 {[%emt 0:00:00]} 43. Ne2 {[%emt 0:00:00]} g5 {[%emt 0:00:00]} 44. f4 {[%emt 0:00:00]} Rc2 {[%emt 0:00:00]} 45. Kf3 {[%emt 0:00:00]} Rf7 {[%emt 0:00:00]} 46. Rb4 {[%emt 0:00:00]} Kd6 {[%emt 0:00:00]} 47. Nd4 {[%emt 0:00:00]} Rc3 {[%emt 0:00:00]} 48. Nf5+ {[%emt 0:00:00]} Kc7 {[%emt 0:00:05]} 49. Rd4 {[%emt 0:00:00]} h5 {[%emt 0:04:22]} 50. fxg5 {[%emt 0:00:00]} hxg4+ {[%emt 0:01:19]} 51. Kxg4 {[%emt 0:00:00]} Rc4 {[%emt 0:00:16]} 52. g6 {[%emt 0:00:00]} Rf8 {[%emt 0:00:03]} 53. g7 {[%emt 0:00:00]} Re8 {[%emt 0:00:20]} 54. Rxc4+ {[%emt 0:00:00]} dxc4 {[%emt 0:00:04]} 55. Bd4 {[%emt 0:00:00]} 1-0

[Event "DMP Ekstraliga 2020"]
[Site "Krakow"]
[Date "2020.09.02"]
[Round "8.30"]
[White "Majdan, Joanna"]
[Black "Kiolbasa, Oliwia"]
[Result "1/2-1/2"]
[ECO "C77"]
[WhiteElo "2325"]
[BlackElo "2160"]
[Annotator "ChessBase"]
[PlyCount "84"]
[EventDate "2020.08.26"]
[EventType "team-tourn"]
[EventCountry "POL"]
[SourceTitle "playchess.com"]
[Source "ChessBase"]
[SourceQuality "1"]
[WhiteTeam "Wieza Pegow"]
[BlackTeam "Miedz Legnica"]
[TimeControl "30/5400+30:1800+30"]

1. e4 {[%emt 0:00:00]} e5 {[%emt 0:00:00]} 2. Nf3 {[%emt 0:00:00]} Nc6 {[%emt 0:00:00]} 3. Bb5 {[%emt 0:00:00]} a6 {[%emt 0:00:00]} 4. Ba4 {[%emt 0:00:00]} Nf6 {[%emt 0:00:04]} 5. d3 {[%emt 0:00:00]} b5 {[%emt 0:00:27]} 6. Bb3 {[%emt 0:00:01]} Be7 {[%emt 0:03:35]} 7. O-O {[%emt 0:00:33]} d6 {[%emt 0:00:12]} 8. a3 {[%emt 0:01:22]} O-O {[%emt 0:01:22]} 9. Re1 {[%emt 0:00:13]} Na5 {[%emt 0:13:18]} 10. Ba2 {[%emt 0:01:21]} c5 {[%emt 0:00:57]} 11. c3 {[%emt 0:04:46]} Nc6 {[%emt 0:01:18]} 12. Nbd2 {[%emt 0:03:02]} Be6 {[%emt 0:01:17]} 13. Bxe6 {[%emt 0:02:11]} fxe6 {[%emt 0:00:04]} 14. Nf1 {[%emt 0:00:27]} Qc7 {[%emt 0:03:43]} 15. Ng3 {[%emt 0:10:08]} Rae8 {[%emt 0:04:12]} 16. a4 {[%emt 0:09:14]} Bd8 {[%emt 0:03:24]} 17. axb5 {[%emt 0:01:44]} axb5 {[%emt 0:00:17]} 18. Qb3 {[%emt 0:01:39]} Qb8 {[%emt 0:02:46]} 19. Ng5 {[%emt 0:03:34]} d5 {[%emt 0:06:54]} 20. Be3 {[%emt 0:04:26]} c4 {[%emt 0:05:51]} 21. dxc4 {[%emt 0:01:30]} dxc4 {[%emt 0:00:48]} 22. Qd1 {[%emt 0:00:11]} Bb6 {[%emt 0:01:49]} 23. h3 {[%emt 0:13:43]} h6 {[%emt 0:12:04]} 24. Nf3 {[%emt 0:00:03]} Rd8 {[%emt 0:00:09]} 25. Qe2 {[%emt 0:05:29]} Rd3 {[%emt 0:05:18]} 26. Bxb6 {[%emt 0:02:28]} Qxb6 {[%emt 0:00:59]} 27. Red1 {[%emt 0:01:48]} Rfd8 {[%emt 0:00:55]} 28. Rxd3 {[%emt 0:00:56]} Rxd3 {[%emt 0:04:30]} 29. Nf1 {[%emt 0:00:43]} Qc5 {[%emt 0:04:15]} 30. Ra8+ {[%emt 0:03:35]} Rd8 {[%emt 0:03:35]} 31. Ra6 {[%emt 0:32:43]} Nd7 {[%emt 0:34:40]} 32. g4 {[%emt 0:00:20]} Qd6 {[%emt 0:04:54]} 33. Qe3 {[%emt 0:05:12]} Nc5 {[%emt 0:01:09]} 34. Rb6 {[%emt 0:00:30]} Rb8 {[%emt 0:01:45]} 35. Rxb8+ {[%emt 0:00:04]} Nxb8 {[%emt 0:00:07]} 36. g5 {[%emt 0:00:31]} hxg5 {[%emt 0:04:03]} 37. Qxg5 {[%emt 0:00:36]} Nxe4 {[%emt 0:01:43]} 38. Qg6 {[%emt 0:00:02]} Nf6 {[%emt 0:01:21]} 39. Ng5 {[%emt 0:02:04]} Qe7 40. Ne3 Qe8 41. Qxe8+ Nxe8 42. Nxe6 Kf7 1/2-1/2

[Event "DMP Ekstraliga 2020"]
[Site "Krakow"]
[Date "2020.09.03"]
[Round "9.2"]
[White "Bluebaum, Matthias"]
[Black "Dziuba, Marcin"]
[Result "1/2-1/2"]
[ECO "D47"]
[WhiteElo "2647"]
[BlackElo "2590"]
[Annotator "ChessBase"]
[PlyCount "94"]
[EventDate "2020.08.26"]
[EventType "team-tourn"]
[EventCountry "POL"]
[SourceTitle "playchess.com"]
[Source "ChessBase"]
[SourceQuality "1"]
[WhiteTeam "Stilon Gorzow"]
[BlackTeam "Wieza Pegow"]
[TimeControl "30/5400+30:1800+30"]

1. d4 {[%emt 0:00:00]} d5 {[%emt 0:00:00]} 2. c4 {[%emt 0:00:02]} c6 {[%emt 0:00:00]} 3. Nc3 {[%emt 0:01:20]} Nf6 {[%emt 0:00:00]} 4. e3 {[%emt 0:00:17]} e6 {[%emt 0:00:13]} 5. Nf3 {[%emt 0:01:12]} Nbd7 {[%emt 0:00:05]} 6. Bd3 {[%emt 0:01:23]} dxc4 {[%emt 0:01:16]} 7. Bxc4 {[%emt 0:00:05]} b5 {[%emt 0:00:21]} 8. Bb3 {[%emt 0:00:43]} b4 {[%emt 0:05:28]} 9. Ne2 {[%emt 0:00:47]} Ba6 {[%emt 0:05:39]} 10. O-O {[%emt 0:05:26]} Be7 {[%emt 0:29:17]} 11. Re1 {[%emt 0:04:32]} c5 {[%emt 0:00:10]} 12. Ng3 {[%emt 0:07:25]} cxd4 {[%emt 0:06:31]} 13. Nxd4 {[%emt 0:05:37]} Qb6 {[%emt 0:06:35]} 14. Bc2 {[%emt 0:18:42]} O-O {[%emt 0:03:30]} 15. b3 {[%emt 0:01:42]} Rfd8 {[%emt 0:06:45]} 16. Bb2 {[%emt 0:01:02]} g6 {[%emt 0:02:30]} 17. Bd3 {[%emt 0:07:08]} Bxd3 {[%emt 0:03:12]} 18. Qxd3 {[%emt 0:00:15]} e5 {[%emt 0:00:29]} 19. Nf3 {[%emt 0:10:00]} e4 {[%emt 0:02:27]} 20. Nxe4 {[%emt 0:00:04]} Nc5 {[%emt 0:00:12]} 21. Nxc5 {[%emt 0:00:41]} Rxd3 {[%emt 0:00:37]} 22. Nxd3 {[%emt 0:00:02]} Ne4 {[%emt 0:03:47]} 23. Rac1 {[%emt 0:02:04]} a5 {[%emt 0:10:09]} 24. Rc4 {[%emt 0:01:56]} Nd6 {[%emt 0:00:16]} 25. Rc2 {[%emt 0:01:50]} Rc8 {[%emt 0:00:42]} 26. Rxc8+ {[%emt 0:01:03]} Nxc8 {[%emt 0:00:01]} 27. Rc1 {[%emt 0:00:06]} Nd6 {[%emt 0:01:32]} 28. Nf4 {[%emt 0:04:35]} Qb7 {[%emt 0:03:41]} 29. Rd1 {[%emt 0:03:16]} Bf8 {[%emt 0:00:09]} 30. h4 {[%emt 0:04:19]} Ne4 {[%emt 0:02:22]} 31. Ng5 {[%emt 0:32:43]} Nc3 {[%emt 0:31:31]} 32. Rd8 {[%emt 0:00:04]} Qe7 {[%emt 0:00:46]} 33. Rd3 {[%emt 0:02:43]} Bg7 {[%emt 0:01:39]} 34. Nd5 {[%emt 0:03:42]} Qc5 {[%emt 0:00:57]} 35. Nxc3 {[%emt 0:03:43]} bxc3 {[%emt 0:01:20]} 36. Bxc3 {[%emt 0:00:04]} Bxc3 {[%emt 0:00:18]} 37. Ne4 {[%emt 0:00:01]} Qa3 {[%emt 0:02:54]} 38. Nxc3 {[%emt 0:01:51]} Qc1+ {[%emt 0:00:25]} 39. Nd1 {[%emt 0:00:11]} Qc2 {[%emt 0:00:09]} 40. Rd8+ {[%emt 0:00:00]} Kg7 {[%emt 0:00:00]} 41. a4 {[%emt 0:00:00]} Qxb3 {[%emt 0:00:00]} 42. Rd4 {[%emt 0:00:00]} Qc2 {[%emt 0:00:00]} 43. g3 {[%emt 0:00:00]} h5 {[%emt 0:00:00]} 44. Kg2 {[%emt 0:00:00]} Qc6+ {[%emt 0:00:00]} 45. Kg1 {[%emt 0:00:00]} Qc2 {[%emt 0:00:00]} 46. Kg2 {[%emt 0:00:00]} Qc6+ {[%emt 0:00:00]} 47. Kg1 {[%emt 0:00:00]} Qc2 {[%emt 0:00:00]} 1/2-1/2